Workbook

Sheet Residential Water & Sewer
B1: Rate Calculator
B3: Residential Meter Size | C3: 0.625 | D3: Select your meter size which can be found on your utility bill. Your Base Rate is determined by the meter size.
B4: Usage in Hundred Cubic Feet (CCF) | C4: 4 | D4: Enter your water usage which can be found on your utility bill.
B6: Instructions: ​Provide the information requested above. Your water usage and meter size can be found on your utility bill. Some accounts have more than one meter. For those accounts with multiple meters, you will need to run the calculator for each meter.
B8: Rates
B9: Water | C9: =+E32 -> 17.32
B10: Sewer | C10: =+E51 -> 26.2
B11: New Rates Total | C11: =+C10+C9 -> 43.52 | E11: =+C11-C20 -> 16.19
B17: Old Rates | H17: Percent Change: | I17: =+E11/C20 -> 0.5924
B18: Water | C18: =+E40 -> 8.52
B19: Sewer | C19: =+E59 -> 18.81
B20: Old Rates Total | C20: =SUM(C18:C19) -> 27.33
H22: =SUM(D24:D25) -> 4
B23: Residential Water Tiers | C23: Rate per CCF | D23: Measured CCF | E23: Charge for Tier
B24: First 2 CCF | C24: 0 | D24: =IF(C4<=2,C4,IF(C4>2,2,0)) -> 2 | E24: =+C24*D24/1 -> 0
B25: Next 4 CCF | C25: 4.2 | D25: =IF(C4>6,4,IF(C4>2,C4-2,0)) -> 2 | E25: =+C25*D25/1 -> 8.4 | I25: Base Rates by Water Meter Size
B26: Next 4 CCF | C26: 5.05 | D26: =IF(C4>10,4,IF(C4<=10,C4-H22)) -> 0 | E26: =+C26*D26/1 -> 0 | H26: Size (Inches) | I26: New | J26: Old
B27: Amount over 10 CCF | C27: 6.31 | D27: =IF(C4>10,C4-10,0) -> 0 | E27: =+C27*D27/1 -> 0 | H27: 0.625 | I27: 6.12 | J27: 3.13
B28: City Tax | E28: =SUM(E24:E27,E31)*0.0225 -> 0.33 | H28: 0.75 | I28: 14.56 | J28: 10.62
B29: State Tax | E29: =SUM(E24:E27,E31)*0.07 -> 1.02
B30: 10% Water Infrastructure Replacement (WIR) fee | E30: =SUM(E24:E27,E31)*10% -> 1.45
D31: Base Water Rate | E31: =IF(C$3=H27,I27,IF(C$3=H28,I28,IF(C$3=H31,I31,IF(C$3=H33,I33,IF(C$3=H34,I34,IF(C$3=H35,I35,IF(C$3=H36,I36,IF(C$3=H39,I39,IF(C$3=H40,I40,IF(C$3=H41,I41,IF(C$3=#REF!,#REF!))))))))))) -> 6.12 | H31: 1 | I31: 18.35 | J31: 12.77
D32: Bill Amount | E32: =SUM(E24:E31) -> 17.32
H33: 1.5 | I33: 32.25 | J33: 18.77
B34: Old Residential Water Tiers | C34: Rate per CCF | D34: Measured CCF | E34: Charge for Tier | H34: 2 | I34: 45.53 | J34: 25.29
B35: First 2 CCF | C35: 0 | D35: =IF(C4<=2,C4,IF(C4>2,2,0)) -> 2 | E35: =+C35*D35/1 -> 0 | H35: 3 | I35: 72.75 | J35: 33.38
B36: Amount over 2 CCF | C36: 2.33 | D36: =IF(C4>2,C4-2,0) -> 2 | E36: =+C36*D36/1 -> 4.66 | H36: 4 | I36: 165.4 | J36: 54.41
B37: City Tax | E37: =SUM(E35:E36,E39)*0.0225 -> 0.18
B38: State Tax | E38: =SUM(E35:E36,E39)*0.07 -> 0.55
D39: Old Base Water Rate | E39: =IF(C$3=H27,J27,IF(C$3=H28,J28,IF(C$3=H31,J31,IF(C$3=H33,J33,IF(C$3=H34,J34,IF(C$3=H35,J35,IF(C$3=H36,J36,IF(C$3=H39,J39,IF(C$3=H40,J40,IF(C$3=H41,J41,IF(C$3=#REF!,#REF!))))))))))) -> 3.13 | H39: 6 | I39: 206.49 | J39: 85.42
D40: Old Bill Amount | E40: =SUM(E35:E39) -> 8.52 | H40: 8 | I40: 268.68 | J40: 133.59
D41: New versus Old Bill | E41: =+E32-E40 -> 8.8 | H41: 10 | I41: 268.68 | J41: 133.59
D42: Percentage Change | E42: =+E41/E40 -> 1.0329
B46: Residential Sewer Tiers | C46: Rate per CCF | D46: Measured CCF | E46: Charge for Tier | I46: Base Sewer Rates by Water Meter Size
B47: First 2 CCF | C47: 0 | D47: =IF(C4<=2,C4,IF(C4>2,2,0)) -> 2 | E47: =+C47*D47/1 -> 0 | H47: Size (Inches) | I47: New | J47: Old
B48: Amount over 2 CCF | C48: 7.02 | D48: =IF(C4>2,C4-2,0) -> 2 | E48: =+C48*D48/1 -> 14.04 | H48: 0.625 | I48: 9.78 | J48: 7.62
B49: 10% Sewer Infrastructure Replacement (SIR) fee | E49: =SUM(E47:E48,E50)*10% -> 2.38
D50: Base Sewer Rate | E50: =IF(C$3=H48,I48,IF(C$3=H50,I50,IF(C$3=H51,I51,IF(C$3=H52,I52,IF(C$3=H53,I53,IF(C$3=H54,I54,IF(C$3=H55,I55,IF(C$3=H57,I57,IF(C$3=H58,I58,IF(C$3=H59,I59,IF(C$3=#REF!,#REF!))))))))))) -> 9.78 | H50: 0.75 | I50: 43.23 | J50: 21.63
D51: Bill Amount | E51: =SUM(E47:E50) -> 26.2 | H51: 1 | I51: 55.94 | J51: 26.05
H52: 1.5 | I52: 108.89 | J52: 38.29
B53: Old Residential Sewer Tiers | C53: Rate per CCF | D53: Measured CCF | E53: Charge for Tier | H53: 2 | I53: 152.98 | J53: 51.57
B54: First 2 CCF | C54: 0 | D54: =IF(C4<=2,C4,IF(C4>2,2,0)) -> 2 | E54: =+C54*D54/1 -> 0 | H54: 3 | I54: 190.45 | J54: 68.04
B55: Amount over 2 CCF | C55: 4.74 | D55: =IF(C4>2,C4-2,0) -> 2 | E55: =+C55*D55/1 -> 9.48 | H55: 4 | I55: 540.41 | J55: 110.88
B56: 10% Sewer User Surcharge | E56: =SUM(E54,E55,E58)*10% -> 1.71
H57: 6 | I57: 644.24 | J57: 174.12
D58: Old Base Sewer Rate | E58: =IF(C$3=H48,J48,IF(C$3=H50,J50,IF(C$3=H51,J51,IF(C$3=H52,J52,IF(C$3=H53,J53,IF(C$3=H54,J54,IF(C$3=H55,J55,IF(C$3=H57,J57,IF(C$3=H58,J58,IF(C$3=H59,J59,IF(C$3=#REF!,#REF!))))))))))) -> 7.62 | H58: 8 | I58: 824.92 | J58: 272.29
D59: Old Bill Amount | E59: =SUM(E54:E58) -> 18.81 | H59: 10 | I59: 824.92 | J59: 272.29
D60: New versus Old Bill | E60: =+E51-E59 -> 7.39
D61: Percentage Change | E61: =+E60/E59 -> 0.3929
B64: Note: This calculator is provided for informational purposes only. The calculated sewer portion of this spreadsheet does not reflect any sprinkler adjustment credits that you may receive during the months of April through November.

Sheet MeterTypes (hidden)
A1: 0.625
A2: 0.75
A3: 1
A4: 1.5
A5: 2
A6: 3
A7: 4
A8: 6
A9: 8
A10: 10
A11: 12
